[Event "*** Titled Tuesday Blitz AM"]
[Site "Chess.com"]
[Date "2020.01.07"]
[Round "4"]
[White "garfield_pg"]
[Black "Pilopa"]
[Result "1-0"]
[WhiteElo "2364"]
[BlackElo "2547"]
[TimeControl "180+2"]
[EndTime "9:56:40 PST"]
[Termination "garfield_pg won by resignation"]

1. e4 {[%clk 0:03:01.9]} 1... Nc6 {[%clk 0:03:00.7]} 2. Nf3 {[%clk 0:03:02]}
2... d6 {[%clk 0:03:01.6]} 3. d4 {[%clk 0:03:01.7]} 3... Nf6 {[%clk 0:03:03.1]}
4. Nc3 {[%clk 0:03:01.5]} 4... g6 {[%clk 0:03:04.7]} 5. d5 {[%clk 0:02:58.2]}
5... Nb8 {[%clk 0:03:04.3]} 6. Bg5 {[%clk 0:02:58.1]} 6... Bg7 {[%clk
0:03:05.6]} 7. Qd2 {[%clk 0:02:58.9]} 7... c6 {[%clk 0:03:03.5]} 8. dxc6 {[%clk
0:02:55.6]} 8... Nxc6 {[%clk 0:03:03.8]} 9. h3 {[%clk 0:02:54]} 9... Qb6 {[%clk
0:03:01.2]} 10. Rb1 {[%clk 0:02:48.2]} 10... Be6 {[%clk 0:02:58.4]} 11. Bd3
{[%clk 0:02:48.8]} 11... O-O {[%clk 0:02:57.4]} 12. O-O {[%clk 0:02:49.6]} 12...
Rac8 {[%clk 0:02:47.3]} 13. Bh6 {[%clk 0:02:46.5]} 13... Qa5 {[%clk 0:02:40.5]}
14. a3 {[%clk 0:02:34.7]} 14... Qh5 {[%clk 0:02:38.6]} 15. Bxg7 {[%clk
0:02:34.8]} 15... Kxg7 {[%clk 0:02:40.5]} 16. Ne2 {[%clk 0:02:27.3]} 16... Ne5
{[%clk 0:02:32.4]} 17. Nxe5 {[%clk 0:02:20.1]} 17... dxe5 {[%clk 0:02:21.6]} 18.
Ng3 {[%clk 0:02:00.9]} 18... Qh4 {[%clk 0:02:21.4]} 19. Qa5 {[%clk 0:01:55.3]}
19... Qf4 {[%clk 0:01:59.7]} 20. Qxa7 {[%clk 0:01:52.4]} 20... h5 {[%clk
0:01:59.1]} 21. Qe3 {[%clk 0:01:48.2]} 21... h4 {[%clk 0:01:56.5]} 22. Qxf4
{[%clk 0:01:45]} 22... exf4 {[%clk 0:01:55.3]} 23. Ne2 {[%clk 0:01:43.2]} 23...
Nh5 {[%clk 0:01:44.9]} 24. f3 {[%clk 0:01:40.6]} 24... Rfd8 {[%clk 0:01:41.3]}
25. Rfd1 {[%clk 0:01:33.2]} 25... g5 {[%clk 0:01:40.6]} 26. c3 {[%clk
0:01:29.4]} 26... Bb3 {[%clk 0:01:41.4]} 27. Rd2 {[%clk 0:01:24]} 27... e5
{[%clk 0:01:40.8]} 28. Re1 {[%clk 0:01:09.1]} 28... Rd6 {[%clk 0:01:39.3]} 29.
Nc1 {[%clk 0:01:09.8]} 29... Be6 {[%clk 0:01:39.9]} 30. Rdd1 {[%clk 0:01:02.7]}
30... Rb6 {[%clk 0:01:27.7]} 31. Re2 {[%clk 0:01:02.4]} 31... Ng3 {[%clk
0:01:27.7]} 32. Red2 {[%clk 0:01:03.7]} 32... Kf6 {[%clk 0:01:13]} 33. Ne2
{[%clk 0:01:04.2]} 33... Bb3 {[%clk 0:01:10.2]} 34. Bc2 {[%clk 0:01:03.7]} 34...
Bc4 {[%clk 0:01:06.9]} 35. Nxg3 {[%clk 0:01:01.9]} 35... hxg3 {[%clk 0:01:05.9]}
36. Rd6+ {[%clk 0:01:02.7]} 36... Rxd6 {[%clk 0:01:06]} 37. Rxd6+ {[%clk
0:01:04.6]} 37... Ke7 {[%clk 0:01:07.5]} 38. Rd2 {[%clk 0:01:01.7]} 38... Be6
{[%clk 0:01:04]} 39. Kf1 {[%clk 0:00:59.2]} 39... Rc6 {[%clk 0:01:03.9]} 40. Bd3
{[%clk 0:00:55]} 40... Rd6 {[%clk 0:00:57]} 41. Ke2 {[%clk 0:00:54]} 41... Rb6
{[%clk 0:00:57.4]} 42. b4 {[%clk 0:00:54.7]} 42... Rc6 {[%clk 0:00:57.1]} 43.
Rc2 {[%clk 0:00:55.7]} 43... Rc8 {[%clk 0:00:51.1]} 44. c4 {[%clk 0:00:55.1]}
44... Ra8 {[%clk 0:00:49.4]} 45. Rc3 {[%clk 0:00:55.5]} 45... Rh8 {[%clk
0:00:50.8]} 46. c5 {[%clk 0:00:49.8]} 46... Bxh3 {[%clk 0:00:50.7]} 47. gxh3
{[%clk 0:00:50.9]} 47... Rxh3 {[%clk 0:00:52.6]} 48. Kf1 {[%clk 0:00:37.3]}
48... Rh2 {[%clk 0:00:48.2]} 49. Rc2 {[%clk 0:00:32.4]} 49... Rh1+ {[%clk
0:00:40.5]} 50. Kg2 {[%clk 0:00:33.4]} 50... Rd1 {[%clk 0:00:37]} 51. Be2 {[%clk
0:00:32.2]} 51... Ra1 {[%clk 0:00:36]} 52. b5 {[%clk 0:00:29.5]} 52... Kd7
{[%clk 0:00:25.5]} 53. c6+ {[%clk 0:00:30.4]} 53... bxc6 {[%clk 0:00:26.5]} 54.
bxc6+ {[%clk 0:00:31.5]} 54... Kc7 {[%clk 0:00:27.9]} 55. Bc4 {[%clk 0:00:28.6]}
55... Rxa3 {[%clk 0:00:26]} 56. Bxf7 {[%clk 0:00:29.2]} 56... Ra8 {[%clk
0:00:22.3]} 57. Be6 {[%clk 0:00:28.4]} 57... Rh8 {[%clk 0:00:18.5]} 58. Bh3
{[%clk 0:00:29.2]} 58... Rh6 {[%clk 0:00:19.9]} 59. Rc5 {[%clk 0:00:18.7]} 59...
Rxc6 {[%clk 0:00:19.5]} 60. Rxe5 {[%clk 0:00:17.6]} 60... Rc2+ {[%clk
0:00:20.1]} 61. Kg1 {[%clk 0:00:17.8]} 61... Rc1+ {[%clk 0:00:21]} 62. Bf1
{[%clk 0:00:18.6]} 62... g4 {[%clk 0:00:20.7]} 63. fxg4 {[%clk 0:00:12.3]} 63...
f3 {[%clk 0:00:21.3]} 64. Rf5 {[%clk 0:00:09.1]} 64... Rc3 {[%clk 0:00:17.9]}
65. g5 {[%clk 0:00:08.7]} 65... Kd7 {[%clk 0:00:14.6]} 66. g6 {[%clk 0:00:09.8]}
66... Rc6 {[%clk 0:00:15.3]} 67. Rxf3 {[%clk 0:00:10.5]} 67... Rxg6 {[%clk
0:00:16.2]} 68. Kg2 {[%clk 0:00:11.7]} 68... Kd6 {[%clk 0:00:17.5]} 69. Rxg3
{[%clk 0:00:11.8]} 69... Rf6 {[%clk 0:00:18.7]} 70. Rf3 {[%clk 0:00:12.8]} 70...
Rg6+ {[%clk 0:00:18.6]} 71. Kf2 {[%clk 0:00:13.7]} 71... Rg7 {[%clk 0:00:18]}
72. Ke3 {[%clk 0:00:14.9]} 72... Ra7 {[%clk 0:00:18.8]} 73. Bd3 {[%clk
0:00:15.4]} 73... Ke5 {[%clk 0:00:18.2]} 74. Rf5+ {[%clk 0:00:16.4]} 74... Ke6
{[%clk 0:00:19.5]} 75. Rh5 {[%clk 0:00:17.5]} 75... Ra1 {[%clk 0:00:18.8]} 76.
Kd4 {[%clk 0:00:18.1]} 76... Rd1 {[%clk 0:00:18.3]} 77. Rh6+ {[%clk 0:00:18.8]}
77... Ke7 {[%clk 0:00:19.2]} 78. Ra6 {[%clk 0:00:20.1]} 78... Rh1 {[%clk
0:00:18.8]} 79. Kd5 {[%clk 0:00:19.9]} 79... Rd1 {[%clk 0:00:18.8]} 80. Ra7+
{[%clk 0:00:21.1]} 80... Kf6 {[%clk 0:00:17.4]} 81. e5+ {[%clk 0:00:22.1]} 81...
Kg5 {[%clk 0:00:18.1]} 82. Rg7+ {[%clk 0:00:20.8]} 82... Kf4 {[%clk 0:00:18]}
83. Kd4 {[%clk 0:00:18.8]} 83... Re1 {[%clk 0:00:16.8]} 84. Rf7+ {[%clk
0:00:19.9]} 84... Kg5 {[%clk 0:00:17]} 85. Rf1 {[%clk 0:00:20.7]} 85... Rxf1
{[%clk 0:00:09.8]} 86. Bxf1 {[%clk 0:00:20.5]} 86... Kg6 {[%clk 0:00:11.7]} 87.
Kd5 {[%clk 0:00:21.6]} 87... Kf7 {[%clk 0:00:13.6]} 88. Kd6 {[%clk 0:00:22.9]}
88... Ke8 {[%clk 0:00:14.9]} 89. Ke6 {[%clk 0:00:23.5]} 89... Kf8 {[%clk
0:00:15.7]} 90. Kd7 {[%clk 0:00:24.7]} 90... Kf7 {[%clk 0:00:17.1]} 91. e6+
{[%clk 0:00:26.6]} 91... Kf6 {[%clk 0:00:19]} 92. e7 {[%clk 0:00:27.9]} 92...
Ke5 {[%clk 0:00:20.9]} 93. e8=Q+ {[%clk 0:00:29.8]} 93... Kd4 {[%clk 0:00:22.8]}
94. Qe2 {[%clk 0:00:30.5]} 94... Kc3 {[%clk 0:00:24.7]} 95. Qd3+ {[%clk
0:00:31.2]} 95... Kb2 {[%clk 0:00:24.9]} 96. Kc6 {[%clk 0:00:31.3]} 1-0

[Event "*** Titled Tuesday Blitz AM"]
[Site "Chess.com"]
[Date "2020.01.07"]
[Round "4"]
[White "MITerryble"]
[Black "Alex_Molchanov"]
[Result "1-0"]
[WhiteElo "2940"]
[BlackElo "2604"]
[TimeControl "180+2"]
[EndTime "9:57:47 PST"]
[Termination "MITerryble won by resignation"]

1. e4 {[%clk 0:03:01.9]} 1... c6 {[%clk 0:02:58]} 2. Nf3 {[%clk 0:03:02.7]} 2...
d5 {[%clk 0:02:59.9]} 3. exd5 {[%clk 0:03:04.6]} 3... cxd5 {[%clk 0:03:00.9]} 4.
Ne5 {[%clk 0:03:06.2]} 4... Nf6 {[%clk 0:03:01]} 5. d4 {[%clk 0:03:07.6]} 5...
g6 {[%clk 0:03:01.1]} 6. Bb5+ {[%clk 0:03:05.6]} 6... Nbd7 {[%clk 0:03:01.4]} 7.
O-O {[%clk 0:03:00.1]} 7... Bg7 {[%clk 0:03:02.6]} 8. Re1 {[%clk 0:02:59.7]}
8... O-O {[%clk 0:03:02.9]} 9. Nd2 {[%clk 0:02:50.3]} 9... Ne8 {[%clk
0:02:57.2]} 10. Bxd7 {[%clk 0:02:35.6]} 10... Bxd7 {[%clk 0:02:59.1]} 11. Qf3
{[%clk 0:02:36.9]} 11... Bf5 {[%clk 0:02:48.9]} 12. c3 {[%clk 0:02:36.6]} 12...
Rc8 {[%clk 0:02:35.7]} 13. Nf1 {[%clk 0:02:34.9]} 13... Be6 {[%clk 0:02:32.9]}
14. Ng3 {[%clk 0:02:33.4]} 14... Nd6 {[%clk 0:02:31]} 15. h4 {[%clk 0:02:29.7]}
15... Nf5 {[%clk 0:02:22.1]} 16. h5 {[%clk 0:02:28.7]} 16... Nxg3 {[%clk
0:02:14.2]} 17. Qxg3 {[%clk 0:02:29.4]} 17... Bf5 {[%clk 0:02:13.4]} 18. Qh4
{[%clk 0:02:14]} 18... Bf6 {[%clk 0:02:08.4]} 19. Qh2 {[%clk 0:02:12.2]} 19...
b5 {[%clk 0:01:27.7]} 20. a3 {[%clk 0:02:09.9]} 20... Bg7 {[%clk 0:01:01.1]} 21.
hxg6 {[%clk 0:02:05.4]} 21... Bxg6 {[%clk 0:00:54.5]} 22. Bh6 {[%clk 0:02:06]}
22... Qd6 {[%clk 0:00:36.4]} 23. Re3 {[%clk 0:02:00.2]} 23... f6 {[%clk
0:00:25.9]} 24. Nxg6 {[%clk 0:01:51.6]} 24... hxg6 {[%clk 0:00:20.2]} 25. Qxd6
{[%clk 0:01:47.9]} 25... exd6 {[%clk 0:00:22.1]} 26. Bf4 {[%clk 0:01:48.4]}
26... Rfe8 {[%clk 0:00:15.8]} 27. Bxd6 {[%clk 0:01:40.7]} 27... Kf7 {[%clk
0:00:16.1]} 28. Rae1 {[%clk 0:01:40.2]} 28... Rxe3 {[%clk 0:00:16.3]} 29. Rxe3
{[%clk 0:01:38.1]} 29... Re8 {[%clk 0:00:17.1]} 30. Rxe8 {[%clk 0:01:38.8]}
30... Kxe8 {[%clk 0:00:18.2]} 31. Bf4 {[%clk 0:01:36.6]} 31... Kf7 {[%clk
0:00:18.7]} 32. b3 {[%clk 0:01:35.9]} 32... a6 {[%clk 0:00:19]} 33. Kf1 {[%clk
0:01:36.4]} 33... Ke6 {[%clk 0:00:20.4]} 34. Ke2 {[%clk 0:01:37.6]} 34... f5
{[%clk 0:00:22]} 35. Kd3 {[%clk 0:01:36.9]} 35... Bf8 {[%clk 0:00:23.1]} 36. a4
{[%clk 0:01:37.6]} 36... Kd7 {[%clk 0:00:19.2]} 37. Bg5 {[%clk 0:01:31.2]} 37...
Kc6 {[%clk 0:00:20.2]} 38. Ke3 {[%clk 0:01:31.8]} 38... Bd6 {[%clk 0:00:21.4]}
39. Bf6 {[%clk 0:01:31.6]} 39... Kd7 {[%clk 0:00:17.9]} 40. Be5 {[%clk
0:01:29.6]} 40... Bf8 {[%clk 0:00:18.9]} 41. Kd3 {[%clk 0:01:26.8]} 41... Kc6
{[%clk 0:00:19.3]} 42. f3 {[%clk 0:01:26.1]} 42... Bh6 {[%clk 0:00:20.6]} 43.
Ke2 {[%clk 0:01:20.9]} 43... Bc1 {[%clk 0:00:21.5]} 44. axb5+ {[%clk 0:01:20.7]}
44... axb5 {[%clk 0:00:22.1]} 45. Bg3 {[%clk 0:01:20.4]} 45... Bh6 {[%clk
0:00:19.4]} 46. Be5 {[%clk 0:01:20.3]} 46... Bg5 {[%clk 0:00:19.4]} 47. Bg7
{[%clk 0:01:20]} 47... Bf4 {[%clk 0:00:19.5]} 48. Bf6 {[%clk 0:01:21.2]} 48...
Bh6 {[%clk 0:00:20.3]} 49. Bh4 {[%clk 0:01:21.4]} 49... Bf4 {[%clk 0:00:21.4]}
50. Be1 {[%clk 0:01:21.4]} 50... Bh6 {[%clk 0:00:20.2]} 51. Bd2 {[%clk
0:01:22.7]} 51... Bf8 {[%clk 0:00:21.7]} 52. Be3 {[%clk 0:01:24.5]} 52... Bg7
{[%clk 0:00:20.7]} 53. Kf2 {[%clk 0:01:24.7]} 53... Bf8 {[%clk 0:00:19.8]} 54.
Kg3 {[%clk 0:01:25.7]} 54... Bd6+ {[%clk 0:00:18.9]} 55. Kh4 {[%clk 0:01:25.6]}
55... Be7+ {[%clk 0:00:19.4]} 56. Bg5 {[%clk 0:01:26.9]} 56... Bf8 {[%clk
0:00:20.9]} 57. Kg3 {[%clk 0:01:23.2]} 57... Bd6+ {[%clk 0:00:20.7]} 58. Kf2
{[%clk 0:01:24.5]} 58... Bc7 {[%clk 0:00:20.2]} 59. Ke3 {[%clk 0:01:25.9]} 59...
Bd6 {[%clk 0:00:21.3]} 60. Kd3 {[%clk 0:01:27.3]} 60... Bf8 {[%clk 0:00:22.1]}
61. c4 {[%clk 0:01:28.8]} 61... Bg7 {[%clk 0:00:22.3]} 62. Bf4 {[%clk
0:01:28.7]} 62... Bf6 {[%clk 0:00:22.1]} 63. Be5 {[%clk 0:01:29]} 63... Be7
{[%clk 0:00:22.9]} 64. Kc3 {[%clk 0:01:29.4]} 64... Bf8 {[%clk 0:00:22.9]} 65.
c5 {[%clk 0:01:27.1]} 65... Bh6 {[%clk 0:00:22.6]} 66. Kd3 {[%clk 0:01:28.1]}
66... Bg5 {[%clk 0:00:22.7]} 67. Ke2 {[%clk 0:01:30]} 67... Bc1 {[%clk
0:00:21.4]} 68. Kf2 {[%clk 0:01:31.9]} 68... Bg5 {[%clk 0:00:22.4]} 69. Kg3
{[%clk 0:01:33]} 69... Be7 {[%clk 0:00:22.2]} 70. Kf4 {[%clk 0:01:33.1]} 70...
Kd7 {[%clk 0:00:23]} 71. Bg7 {[%clk 0:01:23.7]} 71... Ke6 {[%clk 0:00:18.9]} 72.
Bh8 {[%clk 0:01:24.7]} 72... Bd8 {[%clk 0:00:18.4]} 73. Be5 {[%clk 0:01:25.8]}
73... Kd7 {[%clk 0:00:18]} 74. Bb8 {[%clk 0:01:18.1]} 74... Bf6 {[%clk
0:00:16.6]} 75. Ke3 {[%clk 0:01:18.9]} 75... Bg5+ {[%clk 0:00:17.1]} 76. Bf4
{[%clk 0:01:18.7]} 76... Bf6 {[%clk 0:00:18.6]} 77. Be5 {[%clk 0:01:19.9]} 77...
Bg5+ {[%clk 0:00:19.9]} 78. Kf2 {[%clk 0:01:21.3]} 78... Kc6 {[%clk 0:00:20.1]}
79. Kg3 {[%clk 0:01:21.5]} 79... Kd7 {[%clk 0:00:21.5]} 80. Bf4 {[%clk
0:01:11.5]} 80... Bf6 {[%clk 0:00:22.6]} 81. Be3 {[%clk 0:01:13.4]} 81... Ke6
{[%clk 0:00:22.1]} 82. Kf2 {[%clk 0:01:09.2]} 82... Bh4+ {[%clk 0:00:21.9]} 83.
Ke2 {[%clk 0:01:09.9]} 83... Bf6 {[%clk 0:00:23]} 84. Kd3 {[%clk 0:01:10.6]}
84... Kd7 {[%clk 0:00:24.5]} 85. Bf4 {[%clk 0:01:11.5]} 85... Kc6 {[%clk
0:00:25.5]} 86. Be5 {[%clk 0:01:12.1]} 86... Bg5 {[%clk 0:00:26.5]} 87. Ke2
{[%clk 0:01:12.6]} 87... Kd7 {[%clk 0:00:27.4]} 88. Kf2 {[%clk 0:01:13.3]} 88...
Bh4+ {[%clk 0:00:28.9]} 89. Kg1 {[%clk 0:01:14]} 89... Bg5 {[%clk 0:00:27.5]}
90. Kh2 {[%clk 0:01:15]} 90... Bh4 {[%clk 0:00:27.5]} 91. Kh3 {[%clk 0:01:16.2]}
91... Be7 {[%clk 0:00:28.7]} 92. g4 {[%clk 0:01:08.1]} 92... Bg5 {[%clk
0:00:20.6]} 93. Kg3 {[%clk 0:01:09.1]} 93... Kc6 {[%clk 0:00:20.7]} 94. Bf4
{[%clk 0:01:07.6]} 94... Bf6 {[%clk 0:00:21.9]} 95. Be3 {[%clk 0:01:09.5]} 95...
fxg4 {[%clk 0:00:20.1]} 96. Kxg4 {[%clk 0:01:09.2]} 96... Kd7 {[%clk 0:00:21.5]}
97. Bf2 {[%clk 0:01:06.4]} 97... Kc6 {[%clk 0:00:22.4]} 98. Kf4 {[%clk
0:01:04.9]} 98... Kd7 {[%clk 0:00:21.7]} 99. Ke3 {[%clk 0:01:05.8]} 99... Bg5+
{[%clk 0:00:21.9]} 100. Kd3 {[%clk 0:01:06.8]} 100... Bf6 {[%clk 0:00:23]} 101.
Bg3 {[%clk 0:01:08]} 101... Bg5 {[%clk 0:00:23.8]} 102. Be5 {[%clk 0:01:08.7]}
102... Bh6 {[%clk 0:00:24.3]} 103. Ke2 {[%clk 0:01:09.2]} 103... Bg5 {[%clk
0:00:25.6]} 104. Kf2 {[%clk 0:01:11.1]} 104... Kc6 {[%clk 0:00:25.2]} 105. Kg3
{[%clk 0:01:13]} 105... Kd7 {[%clk 0:00:24.6]} 106. Kg4 {[%clk 0:01:14]} 106...
Be7 {[%clk 0:00:25.3]} 107. Bg7 {[%clk 0:01:13.7]} 107... Ke6 {[%clk 0:00:21.9]}
108. Kf4 {[%clk 0:01:14.2]} 108... Bd8 {[%clk 0:00:21.5]} 109. Be5 {[%clk
0:01:15.6]} 109... Kd7 {[%clk 0:00:20.8]} 110. Bb8 {[%clk 0:01:16.9]} 110... Bf6
{[%clk 0:00:21]} 111. Be5 {[%clk 0:01:17.4]} 111... Bd8 {[%clk 0:00:22.4]} 112.
Kg4 {[%clk 0:01:18.5]} 112... Be7 {[%clk 0:00:22.7]} 113. Bg3 {[%clk 0:01:13.5]}
113... Bd8 {[%clk 0:00:22.4]} 114. Bh4 {[%clk 0:01:14.1]} 114... Ba5 {[%clk
0:00:18.5]} 115. Kg5 {[%clk 0:01:14.9]} 115... Bd8+ {[%clk 0:00:18.7]} 116. Kg4
{[%clk 0:01:14.1]} 116... Ba5 {[%clk 0:00:20.1]} 117. Bf6 {[%clk 0:01:12.1]}
117... Ke6 {[%clk 0:00:19.3]} 118. Be5 {[%clk 0:01:12.7]} 118... Bd8 {[%clk
0:00:20]} 119. c6 {[%clk 0:01:13.3]} 119... Be7 {[%clk 0:00:20.7]} 120. f4
{[%clk 0:01:09.6]} 120... Bb4 {[%clk 0:00:08.1]} 121. Kg5 {[%clk 0:01:08.2]} 1-0

[Event "*** Titled Tuesday Blitz AM"]
[Site "Chess.com"]
[Date "2020.01.07"]
[Round "4"]
[White "KRASAVCHIK2002"]
[Black "HomayoonTofighi"]
[Result "0-1"]
[WhiteElo "2480"]
[BlackElo "2684"]
[TimeControl "180+2"]
[EndTime "9:58:06 PST"]
[Termination "HomayoonTofighi won by resignation"]

1. e4 {[%clk 0:03:01.9]} 1... d5 {[%clk 0:03:00.2]} 2. exd5 {[%clk 0:02:54.3]}
2... Qxd5 {[%clk 0:03:02.1]} 3. Nc3 {[%clk 0:02:54.8]} 3... Qa5 {[%clk
0:02:57.1]} 4. d4 {[%clk 0:02:55.8]} 4... Nf6 {[%clk 0:02:56.8]} 5. Nf3 {[%clk
0:02:48.6]} 5... Bg4 {[%clk 0:02:56.5]} 6. h3 {[%clk 0:02:48.7]} 6... Bh5 {[%clk
0:02:56.4]} 7. g4 {[%clk 0:02:49.6]} 7... Bg6 {[%clk 0:02:57.4]} 8. Ne5 {[%clk
0:02:35.4]} 8... Nbd7 {[%clk 0:02:55.7]} 9. Nc4 {[%clk 0:02:35.4]} 9... Qa6
{[%clk 0:02:56.7]} 10. Bf4 {[%clk 0:02:33.2]} 10... Qe6+ {[%clk 0:02:57.2]} 11.
Ne3 {[%clk 0:02:32.7]} 11... Qb6 {[%clk 0:02:58]} 12. Nc4 {[%clk 0:02:19.5]}
12... Qe6+ {[%clk 0:02:58.2]} 13. Ne3 {[%clk 0:02:20.3]} 13... a6 {[%clk
0:02:23.7]} 14. d5 {[%clk 0:02:00.1]} 14... Qb6 {[%clk 0:02:23.8]} 15. Nc4
{[%clk 0:01:56.8]} 15... Qa7 {[%clk 0:02:25]} 16. Be3 {[%clk 0:01:57.3]} 16...
Qb8 {[%clk 0:02:25.5]} 17. Bg2 {[%clk 0:01:58]} 17... e6 {[%clk 0:02:08.7]} 18.
Qd2 {[%clk 0:01:49]} 18... Bb4 {[%clk 0:02:07.8]} 19. a3 {[%clk 0:01:46.5]}
19... Bxc3 {[%clk 0:01:54.5]} 20. Qxc3 {[%clk 0:01:48.4]} 20... exd5 {[%clk
0:01:54.5]} 21. Ne5 {[%clk 0:01:10.4]} 21... O-O {[%clk 0:01:15.1]} 22. Nxd7
{[%clk 0:01:02]} 22... Nxd7 {[%clk 0:01:17]} 23. h4 {[%clk 0:01:01.6]} 23... c5
{[%clk 0:01:05.4]} 24. Qd2 {[%clk 0:00:52.4]} 24... d4 {[%clk 0:01:05.2]} 25.
Bf4 {[%clk 0:00:50.7]} 25... Re8+ {[%clk 0:01:06.5]} 26. Kf1 {[%clk 0:00:52.1]}
26... Qc8 {[%clk 0:01:08.4]} 27. h5 {[%clk 0:00:40]} 27... Be4 {[%clk
0:01:08.5]} 28. Bxe4 {[%clk 0:00:41.2]} 28... Rxe4 {[%clk 0:01:10.4]} 29. f3
{[%clk 0:00:43.1]} 29... Re8 {[%clk 0:01:10.8]} 30. Re1 {[%clk 0:00:40]} 30...
Qc6 {[%clk 0:01:11.2]} 31. Kg2 {[%clk 0:00:35.6]} 31... Nf6 {[%clk 0:01:11]} 32.
h6 {[%clk 0:00:34.2]} 32... g6 {[%clk 0:01:09.7]} 33. Kg3 {[%clk 0:00:32.2]}
33... Nd5 {[%clk 0:01:06.8]} 34. c4 {[%clk 0:00:33.2]} 34... dxc3 {[%clk
0:01:06.2]} 35. Rxe8+ {[%clk 0:00:28.6]} 35... Rxe8 {[%clk 0:01:04.3]} 36. bxc3
{[%clk 0:00:30.1]} 36... b5 {[%clk 0:00:59.7]} 37. Rd1 {[%clk 0:00:29.2]} 37...
Nxf4 {[%clk 0:00:55.4]} 38. Qxf4 {[%clk 0:00:28.6]} 38... Qe6 {[%clk 0:00:57.3]}
39. Qg5 {[%clk 0:00:25.4]} 39... c4 {[%clk 0:00:48.9]} 40. Rd8 {[%clk
0:00:23.6]} 40... Kf8 {[%clk 0:00:48.3]} 41. Qc5+ {[%clk 0:00:22.3]} 41... Qe7
{[%clk 0:00:37.2]} 42. Rxe8+ {[%clk 0:00:21.8]} 42... Kxe8 {[%clk 0:00:37.9]}
43. Qc8+ {[%clk 0:00:23.2]} 43... Qd8 {[%clk 0:00:38.8]} 44. Qxa6 {[%clk
0:00:22.2]} 44... Qd5 {[%clk 0:00:36.8]} 45. Qf6 {[%clk 0:00:20.7]} 45... Kd7
{[%clk 0:00:27.5]} 46. f4 {[%clk 0:00:20.2]} 46... Qe6 {[%clk 0:00:19.6]} 47.
Qe5 {[%clk 0:00:19.4]} 47... Qxe5 {[%clk 0:00:19.1]} 48. fxe5 {[%clk 0:00:21.3]}
48... Kc6 {[%clk 0:00:19.6]} 49. Kf4 {[%clk 0:00:19.2]} 49... Kd5 {[%clk
0:00:18.9]} 50. g5 {[%clk 0:00:19.3]} 50... Kc5 {[%clk 0:00:17.7]} 51. Ke4
{[%clk 0:00:19]} 51... Kc6 {[%clk 0:00:18.5]} 52. e6 {[%clk 0:00:17.4]} 52...
fxe6 {[%clk 0:00:20.4]} 53. Ke5 {[%clk 0:00:17.9]} 53... Kd7 {[%clk 0:00:21.7]}
54. Kf6 {[%clk 0:00:17.9]} 54... Kd6 {[%clk 0:00:23]} 55. Kg7 {[%clk 0:00:18.1]}
55... e5 {[%clk 0:00:24.9]} 56. Kxh7 {[%clk 0:00:13.2]} 56... e4 {[%clk
0:00:25.9]} 57. Kxg6 {[%clk 0:00:15.1]} 57... e3 {[%clk 0:00:26.6]} 58. h7
{[%clk 0:00:14.5]} 58... e2 {[%clk 0:00:28.5]} 59. h8=Q {[%clk 0:00:14.5]} 59...
e1=Q {[%clk 0:00:30.4]} 60. Qf6+ {[%clk 0:00:12.5]} 60... Kc5 {[%clk 0:00:29.9]}
61. Kf7 {[%clk 0:00:11.7]} 61... Qh1 {[%clk 0:00:24.6]} 62. g6 {[%clk
0:00:12.4]} 62... Qh5 {[%clk 0:00:25.5]} 63. Kf8 {[%clk 0:00:11.5]} 63... Qh6+
{[%clk 0:00:25.8]} 64. Qg7 {[%clk 0:00:11.3]} 64... Qf4+ {[%clk 0:00:24.1]} 65.
Qf7 {[%clk 0:00:12.2]} 65... Qb8+ {[%clk 0:00:25]} 66. Qe8 {[%clk 0:00:12.7]}
66... Qf4+ {[%clk 0:00:25.2]} 67. Kg8 {[%clk 0:00:13.2]} 67... Qg3 {[%clk
0:00:22.8]} 68. g7 {[%clk 0:00:13.9]} 68... Qxc3 {[%clk 0:00:23.4]} 69. Qf8+
{[%clk 0:00:14.2]} 69... Kb6 {[%clk 0:00:22]} 70. Kf7 {[%clk 0:00:14.8]} 70...
Qf3+ {[%clk 0:00:22.6]} 71. Ke8 {[%clk 0:00:15.3]} 71... Qc6+ {[%clk 0:00:22.5]}
72. Kd8 {[%clk 0:00:14.3]} 72... Qc7+ {[%clk 0:00:21.5]} 73. Ke8 {[%clk
0:00:15.2]} 73... Qc6+ {[%clk 0:00:23.4]} 74. Kf7 {[%clk 0:00:16.4]} 74... Qf3+
{[%clk 0:00:22.7]} 75. Kg6 {[%clk 0:00:16.8]} 75... Qg4+ {[%clk 0:00:23.7]} 76.
Kh7 {[%clk 0:00:18.2]} 76... Qh5+ {[%clk 0:00:24.1]} 77. Kg8 {[%clk 0:00:19.6]}
77... c3 {[%clk 0:00:24.2]} 78. Qf6+ {[%clk 0:00:15.9]} 78... Kb7 {[%clk
0:00:22.4]} 79. Kf8 {[%clk 0:00:16.4]} 79... Qc5+ {[%clk 0:00:22]} 80. Qe7+
{[%clk 0:00:17.4]} 80... Qxe7+ {[%clk 0:00:22.6]} 81. Kxe7 {[%clk 0:00:19.3]}
81... c2 {[%clk 0:00:24.5]} 82. g8=Q {[%clk 0:00:19.8]} 82... c1=Q {[%clk
0:00:26.4]} 83. Qd5+ {[%clk 0:00:20.7]} 83... Kb6 {[%clk 0:00:24.6]} 84. Qd6+
{[%clk 0:00:20.3]} 84... Ka5 {[%clk 0:00:25]} 85. Qb4+ {[%clk 0:00:21.1]} 85...
Kb6 {[%clk 0:00:26.1]} 86. Qd6+ {[%clk 0:00:22.2]} 86... Kb7 {[%clk 0:00:27.1]}
87. Qb4 {[%clk 0:00:20.8]} 87... Qc6 {[%clk 0:00:25.6]} 88. Kf8 {[%clk
0:00:20.9]} 88... Ka6 {[%clk 0:00:25.7]} 89. Ke7 {[%clk 0:00:22.1]} 89... Kb6
{[%clk 0:00:21.3]} 90. Kf7 {[%clk 0:00:21.5]} 90... Qc4+ {[%clk 0:00:21.3]} 91.
Kf6 {[%clk 0:00:05.1]} 91... Kc6 {[%clk 0:00:15.1]} 92. Ke5 {[%clk 0:00:05.6]}
92... Qd5+ {[%clk 0:00:15.6]} 93. Kf4 {[%clk 0:00:06]} 93... Qd3 {[%clk
0:00:14.4]} 94. Ke5 {[%clk 0:00:06]} 94... Qe3+ {[%clk 0:00:14.7]} 95. Kf5
{[%clk 0:00:05.9]} 95... Qd3+ {[%clk 0:00:14.7]} 96. Ke5 {[%clk 0:00:06.7]}
96... Qe3+ {[%clk 0:00:15.8]} 97. Kf5 {[%clk 0:00:08]} 97... Qe2 {[%clk
0:00:16.5]} 98. Kf4 {[%clk 0:00:07]} 98... Kd5 {[%clk 0:00:17.6]} 99. Kf5 {[%clk
0:00:06.8]} 99... Qf3+ {[%clk 0:00:17.5]} 100. Kg5 {[%clk 0:00:06.6]} 100... Qe2
{[%clk 0:00:18.1]} 101. Kf4 {[%clk 0:00:05.5]} 101... Qc4+ {[%clk 0:00:17.2]}
102. Ke3 {[%clk 0:00:05.4]} 102... Qxb4 {[%clk 0:00:17.2]} 103. axb4 {[%clk
0:00:07.3]} 103... Kc4 {[%clk 0:00:19.1]} 104. Kd2 {[%clk 0:00:07.2]} 104...
Kxb4 {[%clk 0:00:21]} 105. Kc2 {[%clk 0:00:06.4]} 105... Ka3 {[%clk 0:00:21.8]}
106. Kb1 {[%clk 0:00:06.8]} 106... Kb3 {[%clk 0:00:22.8]} 0-1